bitfinex-derivatives/quotes_SOLF0:USTF0_20241216
["timestamp","ask_amount","ask_price","bid_price","bid_amount"]
[1734387872297,2.2896,218.32,218.31,5.36618835]
[1734387879320,2.1,218.39,218.31,5.36618835]
[1734387880523,2.2895,218.33,218.31,5.36618835]
[1734387882420,2.1,218.39,218.31,5.36618835]
[1734387882920,2.2896,218.33,218.31,5.36618835]
[1734387889121,2.1,218.39,218.31,5.36618835]
[1734387889324,2.2896,218.32,218.31,5.36618835]
[1734387890629,2.2896,218.32,218.29,2.2899]
[1734387890925,2.2896,218.32,218.3,3.32652603]
[1734387891127,2.2896,218.32,218.29,2.2899]
[1734387891329,2.2896,218.32,218.3,3.32646312]
[1734387891625,2.2896,218.32,218.29,2.2899]
[1734387891825,2.2896,218.32,218.3,3.32773909]
[1734387892123,35.65176244,218.45,218.28,2.1]
[1734387892322,33.55176244,218.45,218.31,3.32860946]
[1734387892628,2.2889,218.39,218.35,2.2892]
[1734387893627,2.2889,218.39,218.36,3.32839439]
[1734387893923,2.2889,218.39,218.35,2.2892]
[1734387894122,2.2889,218.39,218.36,3.32843042]
[1734387894324,2.2889,218.39,218.36,2.2892]
[1734387897426,33.55176244,218.45,218.33,1.5973]
[1734387897635,2.1,218.45,218.34,3.33000483]
[1734387897822,2.1,218.45,218.35,3.33000483]
[1734387898026,2.1,218.45,218.36,5.43000483]
[1734387898222,2.2885,218.42,218.38,2.2889]
[1734387898528,2.2885,218.42,218.39,3.33000483]
[1734387898729,2.2885,218.42,218.4,3.33000483]
[1734387898930,2.2885,218.42,218.41,3.33000483]
[1734387899131,2.2885,218.42,218.36,2.1]
[1734387899331,2.2885,218.42,218.37,3.32761134]
[1734387899524,2.2885,218.42,218.39,2.2888]
[1734387899728,2.2885,218.42,218.4,3.32761134]
[1734387899927,2.2885,218.42,218.39,2.2888]
[1734387900131,2.2885,218.42,218.4,3.32757791]
[1734387900433,2.2883,218.45,218.4,2.1]
[1734387900729,12.71581179,218.52,218.4,2.1]
[1734387900929,11.17991179,218.52,218.41,1.5587]
[1734387901237,33.00108856,218.53,218.42,3.32741609]
[1734387901532,2.2878,218.5,218.43,3.32741609]
[1734387901731,33.00108856,218.53,218.44,2.1]
[1734387902036,2.288,218.48,218.44,2.1]
[1734387902230,33.00108856,218.53,218.41,6.7841]
[1734387902429,2.2882,218.46,218.41,9.0727]
[1734387902633,2.2882,218.46,218.42,3.32256383]
[1734387902825,2.2882,218.46,218.41,6.7841]
[1734387903332,2.2882,218.46,218.41,12.31257824]
[1734387904435,2.2882,218.46,218.42,2.2885]
[1734387908227,2.1,218.5,218.41,7.08717824]
[1734387908427,2.1,218.5,218.28,62.20184097]
[1734387908428,2.1,218.5,218.38,2.1]
[1734387909033,2.2886,218.42,218.35,2.2892]
[1734387909337,2.1,218.5,218.36,5.41820763]
[1734387909529,2.1,218.5,218.36,2.1]
[1734387909937,2.1,218.5,218.37,5.60692287]
[1734387910137,2.1,218.5,218.37,2.289]
[1734387911340,2.2886,218.42,218.37,4.389]
[1734387912336,2.2886,218.42,218.37,2.289]
[1734387912532,2.1,218.5,218.37,4.389]
[1734387912533,2.2887,218.41,218.37,4.389]
[1734387914839,2.2887,218.41,218.4,5.43157509]
[1734387936652,2.2887,218.41,218.4,8.76068167]
[1734387938151,2.2887,218.41,218.4,5.43157509]
[1734387939749,2.2887,218.41,218.4,8.76358386]
[1734387941859,2.2887,218.41,218.4,5.43157509]
[1734387942054,2.2887,218.41,218.4,8.76600849]
[1734387942255,2.2887,218.41,218.4,5.43157509]
[1734387942551,2.2887,218.41,218.4,8.76667821]
[1734387945360,2.2887,218.41,218.4,5.43157509]
[1734387945562,2.2887,218.41,218.4,8.76639141]
[1734387948862,2.2887,218.41,218.4,8.76875878]
[1734387952665,2.2887,218.41,218.4,5.43157509]
[1734387952858,2.2887,218.41,218.4,8.77125938]
[1734387955756,2.2887,218.41,218.4,8.77296059]
[1734387960669,24.21499233,218.51,218.4,11.06166059]
[1734387960871,11.21499908,218.5,218.41,3.3413855]
[1734387961064,2.2884,218.43,218.42,3.3413855]
[1734387961975,2.2884,218.43,218.4,7.72027509]
[1734387962274,2.2884,218.43,218.41,3.34027472]
[1734387962481,2.2884,218.43,218.42,3.34027472]
[1734387970482,2.2884,218.43,218.4,7.70473125]
[1734387970783,2.2884,218.43,218.41,3.33895916]
[1734387970973,2.2884,218.43,218.42,3.33895916]
[1734387971381,2.2884,218.43,218.42,3.3389081]
[1734387971879,2.2884,218.43,218.4,7.70473125]
[1734387972081,2.2884,218.43,218.41,3.33902272]
[1734387972283,2.2884,218.43,218.42,3.33902272]
[1734387974871,2.2884,218.43,218.4,7.70473125]
[1734387975074,2.2884,218.43,218.41,3.33803796]
[1734387975279,4.5753,218.51,218.42,3.33803796]
[1734387975479,2.2883,218.44,218.43,3.33803796]
[1734387978278,2.1,218.5,218.4,5.60473125]
[1734387978476,2.2886,218.41,218.4,5.60473125]
[1734387978676,2.2886,218.41,218.4,8.94327915]
[1734387981583,2.2886,218.41,218.4,5.60473125]
[1734387981779,2.2886,218.41,218.4,8.94401498]
[1734387982287,2.2886,218.41,218.4,8.94430224]
[1734387986290,2.2886,218.41,218.4,3.33957099]
[1734387986492,2.2889,218.39,218.37,1.609]
[1734387986689,2.2889,218.39,218.38,8.95638321]
[1734387991689,2.2887,218.4,218.38,5.61652883]
[1734387991894,2.2887,218.4,218.39,3.33891816]
[1734387992091,2.2887,218.4,218.39,3.33881988]
[1734387992796,2.2887,218.4,218.39,3.33898623]
[1734387995204,2.2887,218.4,218.39,3.33878532]
[1734387995600,2.1,218.47,218.39,3.33878532]
[1734387995903,2.2886,218.42,218.4,3.33858901]
[1734387996200,2.2886,218.42,218.38,7.71652883]
[1734387996400,2.2886,218.41,218.39,3.33820579]
[1734387996598,2.2886,218.41,218.4,3.33820579]
[1734388001600,2.2886,218.41,218.38,10.00542883]
[1734388001806,2.2886,218.41,218.39,3.33800074]
[1734388002007,2.2886,218.41,218.38,10.00542883]
[1734388002207,2.2886,218.41,218.39,3.33794233]
[1734388002510,2.2886,218.41,218.4,3.33794233]
[1734388004707,2.2885,218.42,218.4,3.33794233]
[1734388004906,2.2885,218.42,218.41,3.33794233]
[1734388007200,2.2885,218.42,218.41,0.73214283]
[1734388007402,2.2885,218.42,218.38,10.00542883]
[1734388013405,2.2885,218.42,218.38,4.3889]
[1734388014411,2.2886,218.41,218.38,4.3889]
[1734388014809,2.1,218.47,218.38,4.3889]
[1734388015014,2.2887,218.41,218.38,4.3889]
[1734388015209,2.2887,218.41,218.38,2.2889]
[1734388017414,2.2887,218.41,218.4,5.61459977]
[1734388019419,2.1,218.47,218.4,11.20106412]
[1734388019621,2.1,218.47,218.41,3.29776435]
[1734388019917,2.2885,218.42,218.4,5.61459977]
[1734388020118,2.2885,218.42,218.41,3.29743081]
[1734388021112,2.2885,218.42,218.41,3.29733381]
[1734388021327,2.2885,218.42,218.4,5.61459977]
[1734388021508,2.2885,218.42,218.41,3.29762931]
[1734388023817,2.2883,218.44,218.41,5.58659329]
[1734388024018,2.2883,218.44,218.41,2.2886]
[1734388024419,2.2883,218.44,218.42,3.29873606]
[1734388024624,2.2883,218.44,218.41,2.2886]
[1734388024925,2.2883,218.44,218.42,3.29895025]
[1734388025219,2.2883,218.44,218.41,2.2886]
[1734388025416,2.2883,218.44,218.42,3.29908313]
[1734388025619,2.2882,218.45,218.42,2.2884]
[1734388025924,2.2882,218.45,218.43,3.29881847]
[1734388026121,2.2882,218.45,218.4,5.61459977]
[1734388026321,2.2882,218.45,218.41,5.39869516]
[1734388026525,2.2882,218.45,218.42,3.29869516]
[1734388026820,2.2882,218.45,218.43,3.29853001]
[1734388027017,2.2882,218.45,218.42,2.2885]
[1734388027214,2.2882,218.45,218.43,3.29842749]
[1734388027419,2.2882,218.45,218.42,2.2885]
[1734388027721,2.2882,218.45,218.43,3.29811381]
[1734388027923,2.2882,218.45,218.42,2.2885]
[1734388028118,2.2882,218.45,218.43,3.29810964]
[1734388028316,2.2882,218.45,218.42,2.2885]
[1734388028520,2.2882,218.45,218.43,3.29792472]
[1734388028724,2.2882,218.45,218.42,2.2885]
[1734388028923,2.2882,218.45,218.43,3.29808647]
[1734388029118,2.2882,218.45,218.42,2.2885]
[1734388029320,2.2882,218.45,218.43,3.29790665]
[1734388029523,2.2882,218.45,218.42,2.2885]
[1734388029919,2.2882,218.45,218.43,3.29744245]
[1734388030116,2.2882,218.45,218.42,2.2885]
[1734388036319,2.2882,218.45,218.43,3.29781176]
[1734388036521,2.2882,218.45,218.42,2.2885]
[1734388036822,2.2882,218.45,218.43,3.29818217]
[1734388037022,2.2882,218.45,218.42,2.2885]
[1734388037224,2.2882,218.45,218.43,3.29829716]
[1734388037422,2.2882,218.45,218.42,2.2885]
[1734388037720,7.93052205,218.49,218.43,5.5868237]
[1734388037928,7.93052205,218.5,218.44,3.2984237]
[1734388038123,2.1,218.51,218.43,2.2884]
[1734388038326,2.1,218.51,218.44,3.29762291]
[1734388038527,2.1,218.51,218.45,2.2882]
[1734388038920,2.2879,218.49,218.45,2.2882]
[1734388044532,2.2879,218.49,218.46,3.29524295]
[1734388044732,2.2879,218.49,218.45,2.2882]
[1734388045032,2.2879,218.49,218.46,3.29522023]
[1734388045235,2.2879,218.49,218.45,2.2882]
[1734388048031,2.2879,218.49,218.4,7.71459977]
[1734388048333,2.2876,218.51,218.41,5.37427373]
[1734388048530,2.2876,218.51,218.42,3.29427373]
[1734388048727,2.2876,218.51,218.47,2.2879]
[1734388049541,2.2876,218.51,218.48,2.2879]
[1734388064551,2.2876,218.51,218.49,5.56147785]
[1734388069153,2.2874,218.54,218.51,2.2876]
[1734388085062,2.2874,218.54,218.5,2.2877]
[1734388088867,2.2871,218.56,218.47,2.2879]
[1734388089065,2.08,218.56,218.47,2.2879]
[1734388089867,21.1037535,218.56,218.47,2.2879]
[1734388090066,19.0237535,218.55,218.47,2.2879]
[1734388090262,7.83196827,218.54,218.47,2.2879]
[1734388090471,2.2877,218.5,218.47,2.2879]
[1734388090965,2.2877,218.5,218.48,2.2879]
[1734388092568,2.2876,218.51,218.48,2.2879]
[1734388096069,2.2875,218.52,218.48,2.2879]
[1734388098373,2.2875,218.52,218.49,2.2878]
[1734388104977,1.4663,218.59,218.47,5.54613785]
[1734388105278,2.08,218.58,218.48,3.30146274]
[1734388105479,2.08,218.58,218.47,5.54613785]
[1734388105783,2.2872,218.55,218.51,2.2875]
[1734388106579,10.12221045,218.55,218.51,2.2875]
[1734388106780,7.83501045,218.54,218.51,2.2875]
[1734388106977,2.2872,218.55,218.51,2.2875]
[1734388109786,2.287,218.57,218.53,2.2874]
[1734388110486,10.12201045,218.57,218.53,2.2874]
[1734388110688,10.12211045,218.56,218.53,2.2874]
[1734388110880,7.83501045,218.55,218.53,2.2874]
[1734388111488,2.2871,218.56,218.53,2.2874]
[1734388112286,10.12211045,218.56,218.53,2.2874]
[1734388112484,2.2871,218.56,218.53,2.2874]
[1734388113187,19.02863085,218.58,218.52,2.2875]
[1734388113388,2.2872,218.55,218.52,2.2875]
[1734388114487,2.2872,218.55,218.5,2.08]
[1734388114488,7.83389511,218.58,218.47,7.62613785]
[1734388114694,2.2874,218.53,218.47,7.62613785]
[1734388114989,2.2874,218.53,218.49,2.2877]
[1734388115580,2.2874,218.53,218.5,2.2877]
[1734388142719,10.12402748,218.53,218.5,2.2877]
[1734388142919,2.2874,218.53,218.5,2.2877]
[1734388145924,10.1272606,218.53,218.5,2.2877]
[1734388146119,2.2874,218.53,218.5,2.2877]
[1734388146323,10.1281454,218.56,218.53,2.2873]
[1734388146515,2.2871,218.56,218.53,9.36597046]
[1734388147714,7.8410454,218.56,218.54,2.2872]
[1734388148118,2.287,218.57,218.54,2.2872]
[1734388149921,2.287,218.57,218.53,7.07867046]
[1734388150121,2.287,218.57,218.54,2.2872]
[1734388150324,10.1277454,218.6,218.55,7.07867046]
[1734388150520,7.8410454,218.59,218.55,9.15867046]
[1734388150725,10.1277454,218.6,218.56,2.287]
[1734388150927,10.1277454,218.6,218.57,7.07867046]
[1734388151827,2.2867,218.6,218.57,7.07867046]
[1734388153421,2.2865,218.61,218.57,7.07867046]
[1734388154530,2.2865,218.61,218.58,2.2868]
[1734388158338,2.2865,218.62,218.58,2.2868]
[1734388159934,2.2865,218.62,218.59,2.2867]
[1734388165542,2.2864,218.62,218.58,2.2868]
[1734388166242,2.2864,218.63,218.6,2.2866]
[1734388166842,2.2862,218.65,218.61,2.2865]
[1734388172343,2.2862,218.64,218.61,2.2865]
[1734388177748,7.07867046,218.67,218.6,2.08]
[1734388177951,2.2865,218.62,218.6,2.08]
[1734388181551,2.2865,218.62,218.6,4.3666]
[1734388183657,7.56979023,218.65,218.6,4.3666]
[1734388183857,2.2864,218.63,218.6,4.3666]
[1734388188550,2.2864,218.63,218.6,2.2866]
[1734388189958,2.2866,218.61,218.58,2.2868]
[1734388190158,2.08,218.66,218.58,2.2868]
[1734388190358,20.83971812,218.66,218.58,2.2868]
[1734388190560,18.75971812,218.65,218.58,2.2868]
[1734388190862,2.2867,218.6,218.58,2.2868]
[1734388191163,11.17690593,218.63,218.55,2.08]
[1734388191459,2.2868,218.59,218.56,9.36567046]
[1734388196563,9.87994983,218.59,218.56,9.36567046]
[1734388196765,2.2868,218.59,218.56,9.36567046]
[1734388197664,2.2869,218.58,218.56,2.287]
[1734388197865,2.2869,218.58,218.56,9.36567046]
[1734388200969,18.77907145,218.61,218.56,9.36567046]
[1734388201169,2.2868,218.59,218.56,9.36567046]
[1734388201372,7.59248395,218.6,218.56,7.07867046]
[1734388201570,18.77696252,218.61,218.56,7.07867046]
[1734388201772,7.59248395,218.6,218.56,7.07867046]
[1734388202670,2.2869,218.58,218.56,7.07867046]
[1734388205868,2.2869,218.58,218.55,2.2872]
[1734388206268,2.2869,218.58,218.55,9.36587046]
[1734388209372,2.2869,218.58,218.55,2.2872]
[1734388209670,2.2869,218.58,218.55,9.36587046]
[1734388215771,2.2869,218.58,218.55,2.2872]
[1734388216372,2.2869,218.58,218.48,1.6151]
[1734388216373,7.58636503,218.6,218.48,1.6151]
[1734388216573,7.07867046,218.57,218.5,7.07867046]
[1734388216778,9.15867046,218.57,218.5,7.07867046]
[1734388217279,2.2876,218.52,218.5,7.07867046]
[1734388217479,16.74503549,218.57,218.48,8.69377046]
[1734388217480,7.07867046,218.55,218.48,8.69377046]
[1734388217780,2.2876,218.51,218.48,10.98167046]
[1734388218174,7.07867046,218.55,218.48,8.69377046]
[1734388218380,2.2875,218.52,218.49,2.2878]
[1734388221680,2.2875,218.52,218.49,9.36647046]
[1734388229088,2.2875,218.53,218.51,7.07867046]
[1734388235690,2.2875,218.53,218.51,9.36627046]
[1734388243693,2.2875,218.53,218.51,2.2876]
[1734388245391,2.2871,218.56,218.52,7.07867046]
[1734388246404,2.2871,218.56,218.54,2.2873]
[1734388246598,11.17427949,218.6,218.54,2.2873]
[1734388246900,7.58184076,218.59,218.54,2.2873]
[1734388247096,7.07867046,218.6,218.54,2.2873]
[1734388247293,2.2868,218.59,218.54,2.2873]
[1734388247501,7.07867046,218.6,218.54,9.36597046]
[1734388247703,7.58184076,218.6,218.55,2.2872]
[1734388247896,18.25080439,218.61,218.55,2.2872]
[1734388248096,7.58184076,218.6,218.55,2.2872]
[1734388248296,7.07867046,218.61,218.55,2.2872]
[1734388248500,7.07867046,218.61,218.56,2.287]
[1734388248993,25.83299793,218.61,218.56,2.287]
[1734388249193,7.58184076,218.6,218.56,2.287]
[1734388249398,2.2868,218.59,218.56,2.287]
[1734388250698,2.2866,218.61,218.56,7.07867046]
[1734388251797,7.07867046,218.63,218.59,2.2867]
[1734388251798,2.2864,218.63,218.59,2.2867]
[1734388253107,8.65335434,218.63,218.59,2.2867]
[1734388254505,16.23207808,218.63,218.59,2.2867]
[1734388254704,8.65335434,218.63,218.59,2.2867]
[1734388255302,2.2864,218.63,218.59,2.2867]
[1734388260117,2.2864,218.63,218.59,8.65365434]
[1734388265014,2.2864,218.62,218.59,8.65365434]
[1734388269220,2.2864,218.62,218.59,2.2867]
[1734388272318,2.2862,218.65,218.62,2.2864]
[1734388278431,2.2862,218.65,218.61,2.2865]
[1734388280632,2.2863,218.64,218.61,2.2865]
[1734388282927,6.36695434,218.69,218.58,7.52856632]
[1734388283127,6.36695434,218.69,218.6,8.65355434]
[1734388283128,2.2864,218.63,218.6,8.65355434]
[1734388284729,2.2866,218.61,218.58,7.73546632]
[1734388285034,2.2866,218.61,218.58,11.81552066]
[1734388287733,2.2866,218.61,218.58,14.10242066]
[1734388292736,6.36695434,218.64,218.52,1.4773]
[1734388292941,25.10821684,218.64,218.55,6.36695434]
[1734388293243,18.7412625,218.63,218.55,6.36695434]
[1734388293437,7.57016297,218.62,218.55,11.97998912]
[1734388293834,7.57016297,218.62,218.55,14.26708912]
[1734388294742,9.65016297,218.62,218.55,14.26708912]
[1734388295144,2.2868,218.6,218.55,7.90013478]
[1734388295444,7.57016297,218.6,218.55,14.26708912]
[1734388295745,7.57016297,218.61,218.55,14.26708912]
[1734388295945,2.2869,218.59,218.55,14.26708912]
[1734388298048,2.2869,218.58,218.55,8.65405434]
[1734388301558,2.2867,218.6,218.57,6.36695434]
[1734388302854,2.2867,218.6,218.57,6.36659743]
[1734388306052,6.36659743,218.6,218.52,1.4773]
[1734388306355,6.36659743,218.6,218.52,6.36659743]
[1734388306552,25.11877418,218.6,218.52,6.36659743]
[1734388306758,2.2871,218.56,218.52,8.65399743]
[1734388307360,2.2871,218.56,218.52,2.2874]
[1734388307653,6.36659743,218.58,218.52,2.2874]
[1734388307654,2.2872,218.55,218.52,2.2874]
[1734388308861,2.2872,218.55,218.52,8.65665151]
[1734388310460,4.3669,218.58,218.54,8.65645151]
[1734388310654,2.2869,218.58,218.54,8.65645151]
[1734388311062,2.2869,218.58,218.54,6.36925151]
[1734388312563,2.2869,218.58,218.55,2.2872]
[1734388313559,2.2869,218.58,218.53,8.65655151]
[1734388314165,2.2869,218.58,218.53,2.2873]
[1734388314364,2.2869,218.58,218.53,8.65655151]
[1734388315868,2.2869,218.58,218.53,2.2873]
[1734388316167,2.2869,218.58,218.53,8.65655151]
[1734388317069,2.2869,218.58,218.53,2.2873]
[1734388317367,2.2869,218.58,218.53,8.65655151]
[1734388317966,2.2871,218.57,218.53,2.2873]
[1734388319871,18.72840377,218.61,218.52,6.36925151]
[1734388320071,7.57053923,218.6,218.53,6.36925151]
[1734388320868,2.2871,218.57,218.53,8.65665151]
[1734388323576,2.2871,218.56,218.53,8.65665151]
[1734388324777,2.2871,218.56,218.53,2.2874]
[1734388324966,2.2871,218.56,218.53,8.65665151]
[1734388325572,2.2871,218.56,218.53,2.2874]
[1734388325775,2.2871,218.56,218.53,8.65665151]
[1734388332184,2.2871,218.56,218.54,2.2873]
[1734388342982,52.06029511,218.75,218.52,6.36925151]
[1734388343183,6.36925151,218.65,218.55,6.36925151]
[1734388343387,6.36925151,218.63,218.54,6.36925151]
[1734388343589,6.36925151,218.63,218.55,2.06]
[1734388343885,2.2868,218.6,218.56,2.287]
[1734388344492,2.2868,218.6,218.57,2.287]
[1734388345887,7.58547258,218.62,218.56,2.2871]
[1734388345888,2.2868,218.59,218.56,2.2871]
[1734388350089,9.87227258,218.59,218.56,2.2871]
[1734388350291,2.2868,218.59,218.56,2.2871]
[1734388351198,9.87227258,218.59,218.56,2.2871]
[1734388351395,7.58547258,218.58,218.56,2.2871]
[1734388353102,2.2868,218.59,218.56,2.2871]
[1734388353999,11.19073028,218.6,218.57,2.287]
[1734388354197,7.58547258,218.59,218.57,2.287]
[1734388355200,2.2867,218.61,218.57,2.287]
[1734388355201,7.58547258,218.6,218.57,2.287]
[1734388355400,2.2867,218.61,218.57,2.287]
[1734388355804,21.06713352,218.61,218.57,2.287]
[1734388355999,7.58547258,218.6,218.57,2.287]
[1734388356199,2.2867,218.61,218.57,2.287]
[1734388356596,21.06754287,218.61,218.57,2.287]
[1734388356797,7.58547258,218.6,218.57,2.287]
[1734388357195,2.2868,218.59,218.56,2.2871]
[1734388357599,7.58547258,218.62,218.55,6.36925151]
[1734388357810,6.36925151,218.63,218.55,6.36925151]
[1734388358103,25.14815106,218.63,218.55,6.36925151]
[1734388358305,18.77889955,218.62,218.55,6.36925151]
[1734388358505,2.2867,218.6,218.57,2.287]
[1734388361705,7.58547258,218.62,218.57,2.287]
[1734388361905,2.2868,218.59,218.57,2.287]
[1734388363111,2.2868,218.59,218.55,2.2871]
[1734388363300,2.2869,218.58,218.55,2.2871]
[1734388364810,2.2869,218.58,218.55,7.81414229]
[1734388373519,18.71794946,218.6,218.55,2.2871]
[1734388373717,7.51997658,218.59,218.53,6.36925151]
[1734388375415,2.2872,218.56,218.53,8.65665151]
[1734388383820,2.2872,218.56,218.53,2.2874]
[1734388384016,2.2872,218.56,218.53,8.65665151]
[1734388384726,2.2873,218.55,218.53,8.65665151]
[1734388389124,2.2873,218.55,218.53,2.2874]
[1734388389323,2.2873,218.55,218.53,8.65665151]
[1734388391425,2.2871,218.56,218.53,8.65665151]
[1734388392026,2.2872,218.55,218.53,8.65665151]
[1734388394630,2.2872,218.55,218.53,2.2874]
[1734388410040,2.2876,218.52,218.49,8.42925151]
[1734388410233,2.2876,218.52,218.49,6.36925151]
[1734388410434,2.2876,218.52,218.49,11.86080502]
[1734388411533,2.2876,218.52,218.5,2.2877]
[1734388414339,2.2876,218.52,218.49,11.86080502]
[1734388414540,2.2876,218.52,218.49,14.14860502]
[1734388419731,2.2876,218.52,218.49,8.65705151]
[1734388422537,2.2875,218.53,218.5,2.2877]
[1734388439857,2.2875,218.52,218.5,2.2877]
[1734388441957,18.70250018,218.57,218.5,6.36925151]
[1734388442155,6.36925151,218.6,218.53,6.36925151]
[1734388442357,18.70877301,218.61,218.53,6.36925151]
[1734388442661,13.88580757,218.6,218.53,6.36925151]
[1734388442865,11.19221695,218.59,218.53,6.36925151]
[1734388443058,7.51655606,218.58,218.53,6.36925151]
[1734388443257,2.2869,218.58,218.54,2.2873]
[1734388443761,2.2869,218.58,218.53,6.36925151]
[1734388443762,2.2869,218.59,218.55,2.2872]
[1734388444159,9.80343863,218.59,218.55,2.2872]
[1734388444359,2.2869,218.58,218.55,2.2872]
[1734388449068,2.2869,218.58,218.53,6.36925151]
[1734388449269,2.2869,218.58,218.56,2.2871]
[1734388449769,2.2867,218.6,218.57,2.287]
[1734388455075,55.34499092,218.62,218.56,2.2871]
[1734388455777,2.2868,218.59,218.56,2.2871]
[1734388460280,55.34499092,218.62,218.56,2.2871]
[1734388460581,2.2869,218.58,218.55,4.3472]
[1734388460775,6.36925151,218.6,218.55,2.06]
[1734388460978,2.287,218.58,218.55,2.06]
[1734388461175,2.287,218.58,218.55,4.3472]
[1734388461380,2.287,218.58,218.55,2.2872]
[1734388464278,2.2871,218.57,218.53,2.2873]
[1734388466176,2.2871,218.56,218.53,2.2873]
[1734388467975,2.2872,218.55,218.52,4.3475]
[1734388468573,2.2874,218.54,218.5,8.65695151]
[1734388468972,6.36925151,218.56,218.5,6.36925151]
[1734388470581,2.2876,218.52,218.5,6.36925151]
[1734388470783,2.2876,218.52,218.49,5.45385406]
[1734388471082,2.2876,218.52,218.49,11.82310557]
[1734388471278,2.2877,218.5,218.48,2.06]
[1734388471580,2.2877,218.5,218.48,8.42925151]
[1734388472082,2.2877,218.5,218.48,6.36925151]
[1734388472584,2.2877,218.5,218.48,11.88788379]
[1734388474179,2.2877,218.5,218.48,5.51863228]
[1734388476480,2.2877,218.5,218.47,8.65725151]
[1734388477584,2.2877,218.5,218.47,14.2607828]
[1734388479890,2.2877,218.5,218.47,8.65725151]
[1734388480789,2.2877,218.51,218.47,8.65725151]
[1734388480996,6.36925151,218.56,218.49,6.36925151]
[1734388481492,2.2877,218.51,218.49,6.36925151]
[1734388483090,2.2874,218.54,218.47,7.65311921]
[1734388483288,6.36925151,218.56,218.48,6.36925151]
[1734388484393,7.50428091,218.58,218.49,2.2878]
[1734388484594,6.36925151,218.56,218.49,2.2878]
[1734388485399,2.2876,218.52,218.49,2.2878]
[1734388489909,6.36925151,218.56,218.47,5.36511921]
[1734388490404,6.36925151,218.56,218.48,6.36925151]
[1734388491404,2.2876,218.52,218.49,2.2878]
[1734388493409,2.2876,218.52,218.48,2.2879]
[1734388496406,2.2876,218.51,218.48,2.2879]
[1734388496798,6.36925151,218.53,218.45,2.2883]
[1734388497108,2.2879,218.49,218.45,2.2883]
[1734388497699,6.36925151,218.51,218.45,2.2883]
[1734388497903,6.36925151,218.51,218.44,8.65765151]
[1734388497904,2.288,218.48,218.44,8.65765151]
[1734388498201,2.288,218.48,218.45,5.57795793]
[1734388500002,6.36925151,218.51,218.43,2.2884]
[1734388500205,6.36925151,218.51,218.43,8.65765151]
[1734388500402,8.42925151,218.51,218.43,8.65765151]
[1734388501512,2.2882,218.46,218.43,2.2884]
[1734388501708,2.2882,218.46,218.43,8.65765151]
[1734388502206,2.2882,218.46,218.43,14.18608316]
[1734388502908,8.42925151,218.51,218.43,11.89768316]
[1734388503211,2.2882,218.46,218.43,14.18618316]
[1734388503612,2.2883,218.45,218.41,41.72267556]
[1734388503808,2.2883,218.45,218.42,6.36925151]
[1734388504614,2.2884,218.44,218.42,6.36925151]
[1734388512218,6.36925151,218.49,218.38,2.06]
[1734388512414,6.36925151,218.47,218.4,6.36925151]
[1734388512611,8.42925151,218.47,218.4,6.36925151]
[1734388513819,2.2887,218.42,218.39,2.2889]
[1734388514020,2.2887,218.42,218.4,6.36925151]
[1734388515611,2.2887,218.42,218.39,2.2889]
[1734388515910,8.42925151,218.47,218.38,5.52014894]
[1734388515911,2.2888,218.4,218.38,5.52014894]
[1734388516118,2.2888,218.4,218.39,3.30213725]
[1734388516516,6.36925151,218.45,218.38,11.88940045]
[1734388516718,6.36925151,218.45,218.38,14.17840045]
[1734388518518,2.2887,218.41,218.38,14.17840045]
[1734388519926,2.2887,218.41,218.38,7.80914894]
[1734388520126,2.2887,218.41,218.38,14.17840045]
[1734388520425,2.2887,218.41,218.38,7.80914894]
[1734388522229,2.2887,218.41,218.39,6.36925151]
[1734388528323,5.61945014,218.59,218.38,11.88940045]
[1734388528525,6.36925151,218.49,218.4,6.36925151]
[1734388530431,2.2884,218.44,218.41,2.2886]
[1734388530832,2.2884,218.44,218.4,6.36925151]
[1734388532339,2.2885,218.43,218.4,8.65795151]
[1734388534338,7.49909654,218.5,218.4,6.36925151]
[1734388534638,2.2883,218.45,218.41,2.2886]